fUSD/lending_fUSD_20240412
["ID","MTS","AMOUNT","RATE_DAILY","PERIOD"]
[322262394,1712916698904,-4566.76,0.000388,3]
[322262395,1712916698913,-4566.76,0.000388,3]
[322262396,1712916698922,-4566.76,0.000388,3]
[322262397,1712916698931,-4566.76,0.000388,3]
[322262398,1712916698940,-4566.76,0.000388,3]
[322262399,1712916698949,-4566.76,0.000388,3]
[322262400,1712916698959,-4566.76,0.000388,3]
[322262401,1712916698968,-4566.76,0.000388,3]
[322262402,1712916698977,-4566.76,0.000388,3]
[322262403,1712916698986,-4566.76,0.000388,3]
[322262404,1712916698995,-4566.76,0.000388,3]
[322262405,1712916699004,-4566.76,0.000388,3]
[322262406,1712916699013,-4566.76,0.000388,3]
[322262407,1712916699023,-4566.76,0.000388,3]
[322262408,1712916699032,-4566.76,0.000388,3]
[322262409,1712916699042,-4566.76,0.000388,3]
[322262410,1712916699051,-4566.76,0.000388,3]
[322262411,1712916699061,-4566.76,0.000388,3]
[322262412,1712916699217,-4566.76,0.000388,3]
[322262413,1712916699227,-150.0,0.00038804,2]
[322262414,1712916699236,-150.0,0.0003881,2]
[322262415,1712916699246,-150.0,0.00038812,2]
[322262416,1712916699255,-150.0,0.00038821,2]
[322262417,1712916699264,-150.0,0.00038824,2]
[322262418,1712916699273,-150.0,0.00038826,2]
[322262419,1712916699283,-150.0,0.00038826,2]
[322262420,1712916699292,-300.0,0.00038827,2]
[322262421,1712916699302,-150.0,0.00038829,2]
[322262422,1712916699311,-1335.05589241,0.00038832,2]
[322262423,1712916699320,-150.0,0.00038833,2]
[322262424,1712916699329,-151.08912705,0.00038833,7]
[322262425,1712916699339,-150.0,0.00038838,2]
[322262426,1712916699348,-150.0,0.00038853,2]
[322262427,1712916699357,-300.0,0.00038854,2]
[322262428,1712916699367,-150.0,0.00038868,2]
[322262429,1712916699377,-150.0,0.0003887,2]
[322262430,1712916699387,-150.0,0.00038871,2]
[322262431,1712916699397,-150.0,0.00038872,2]
[322262432,1712916699406,-154.14042621,0.00038873,7]
[322262433,1712916699415,-150.0,0.00038877,2]
[322262434,1712916699424,-150.0,0.00038879,2]
[322262435,1712916699434,-150.0,0.00038897,2]
[322262436,1712916699443,-300.0,0.00038898,2]
[322262437,1712916699452,-3957.42105499,0.000389,2]
[322262438,1712916699461,-4072.29619757,0.000389,15]
[322262439,1712916699471,-3810.4543532,0.000389,30]
[322262440,1712916699480,-394.0,0.000389,13]
[322262441,1712916699490,-416.0,0.000389,13]
[322262442,1712916699499,-150.0,0.000389,13]
[322262443,1712916699508,-150.0,0.000389,5]
[322262444,1712916699518,-150.0,0.00038901,2]
[322262445,1712916699527,-3285.59603356,0.00038902,2]
[322262446,1712916699537,-252.72329,0.0003892,2]
[322262447,1712916699546,-150.0,0.00038929,2]
[322262448,1712916699555,-414.16,0.00038933,2]
[322262449,1712916699564,-150.0,0.00038935,2]
[322262450,1712916699573,-150.0,0.00038937,2]
[322262451,1712916699582,-150.0,0.00038943,2]
[322262452,1712916699592,-150.0,0.00038954,2]
[322262453,1712916699601,-150.0,0.00038956,2]
[322262454,1712916699610,-150.0,0.00038967,2]
[322262455,1712916699620,-5543.48174477,0.00038969,2]
[322262456,1712916699629,-150.0,0.00038969,2]
[322262457,1712916699639,-150.0,0.00038976,2]
[322262458,1712916699648,-150.0,0.00038977,2]
[322262459,1712916699658,-150.0,0.00038979,2]
[322262460,1712916699667,-1500.0,0.00038985,2]
[322262461,1712916699677,-151.43676,0.00038988,14]
[322262462,1712916699691,-151.0,0.00038988,14]
[322262463,1712916699702,-151.0,0.00038988,14]
[322262464,1712916699713,-151.0,0.00038988,14]
[322262465,1712916699723,-151.840613,0.00038988,14]
[322262466,1712916699733,-757.304868,0.00038988,14]
[322262467,1712916699743,-757.304868,0.00038988,14]
[322262468,1712916699752,-151.0,0.00038988,14]
[322262469,1712916699763,-150.0,0.00038988,2]
[322262470,1712916699773,-150.0,0.00038988,2]
[322262471,1712916699783,-151.0,0.00038988,14]
[322262472,1712916699793,-150.0,0.00038988,2]
[322262473,1712916699803,-150.0,0.00038991,2]
[322262474,1712916699812,-1395.3081905,0.00038994,2]
[322262475,1712916699824,-748.3374784,0.00038994,2]
[322262476,1712916699835,-1087.32409227,0.00038995,4]
[322262477,1712916699844,-186631.99262587,0.00038997,17]
[322262478,1712916699855,-1603.32385558,0.00038997,5]
[322262479,1712916699864,-594.96211674,0.00038997,2]
[322262480,1712916699875,-155.0,0.00038997,2]
[322262481,1712916699886,-263.11066074,0.00038997,2]
[322262482,1712916699895,-2968.73743759,0.00038997,4]
[322262483,1712916699905,-288.5292445,0.00038997,4]
[322262484,1712916699915,-2000.0,0.00038997,2]
[322262485,1712916699926,-200.0,0.00038997,2]
[322262486,1712916699935,-200.0,0.00038997,2]
[322262487,1712916699944,-27680.5576114,0.00038997,2]
[322262488,1712916699954,-100000.0,0.00039,29]
[322262489,1712916699963,-1434.11,0.00039,5]
[322262490,1712916699973,-102611.70544663,0.00039,27]
[322262491,1712916699982,-150.0,0.00039,120]
[322262492,1712916699991,-151.0,0.00039,14]
[322262493,1712916700000,-151.0,0.00039,14]
[322262494,1712916700010,-151.0,0.00039,14]
[322262495,1712916700019,-151.0,0.00039,14]
[322262496,1712916700028,-151.0,0.00039,14]
[322262497,1712916700037,-151.0,0.00039,14]
[322262498,1712916700047,-895.1575,0.00039,2]
[322262499,1712916700057,-895.1575,0.00039,2]
[322262500,1712916700065,-2043.8025,0.00039,2]
[322262501,1712916700075,-2043.8025,0.00039,2]
[322262502,1712916700084,-157.83691746,0.00039023,7]
[322262503,1712916700093,-5615.2914255,0.00039024,2]
[322262504,1712916700102,-162.277296,0.00039051,14]
[322262505,1712916700111,-154.345584,0.00039051,14]
[322262506,1712916700120,-152.963252,0.00039051,14]
[322262507,1712916700129,-151.0,0.00039051,14]
[322262508,1712916700138,-151.0,0.00039051,14]
[322262509,1712916700147,-151.0,0.00039051,14]
[322262510,1712916700157,-155.07714216,0.00039054,7]
[322262511,1712916700166,-154.99471213,0.00039057,7]
[322262512,1712916700175,-1335.05589241,0.00039255,2]
[322262513,1712916700184,-157.18906211,0.00039278,7]
[322262514,1712916700193,-983.26,0.000393,7]
[322262515,1712916700202,-157.43248175,0.00039311,7]
[322262516,1712916700211,-600.0,0.00039328,10]
[322262517,1712916700221,-500.0,0.00039328,10]
[322262518,1712916700231,-2300.0,0.00039328,10]
[322262519,1712916700242,-200.0,0.00039387,2]
[322262520,1712916700254,-200.0,0.00039387,2]
[322262521,1712916700264,-154.57743463,0.00039444,7]
[322262522,1712916700274,-154.14042621,0.00039448,7]
[322262523,1712916700284,-3285.59603357,0.00039448,2]
[322262524,1712916700294,-31332.035424,0.00039463,2]
[322262525,1712916700304,-1567.5215751,0.00039473,2]
[322262526,1712916700313,-845.9984968,0.00039473,2]
[322262527,1712916700322,-6356.0319965,0.00039473,2]
[322262528,1712916700331,-7096.7725675,0.00039473,2]
[322262529,1712916700340,-7837.5131385,0.00039473,2]
[322262530,1712916700349,-34983.5132365,0.00039473,2]
[322262531,1712916700359,-38634.9910491,0.00039473,2]
[322262532,1712916700368,-42286.4688617,0.00039473,2]
[322262533,1712916700378,-154.57743467,0.00039474,7]
[322262534,1712916700387,-157.83691746,0.00039476,7]
[322262535,1712916700396,-157.83691746,0.00039488,7]
[322262536,1712916700407,-10018.21042896,0.0003949,10]
[322262537,1712916700417,-192508.31012694,0.000395,30]
[322262538,1712916700428,-1000.0,0.000395,2]
[322262539,1712916700438,-153.99568917,0.00039532,7]
[322262540,1712916700447,-252.7233,0.0003954,2]
[322262541,1712916700456,-329.132968,0.0003955,2]
[322262542,1712916700466,-162.63437052,0.00039646,7]
[322262543,1712916700475,-960.0,0.00039726,7]
[322262544,1712916700485,-157.83691756,0.00039764,7]
[322262545,1712916700495,-200.0,0.00039781,2]
[322262546,1712916700505,-200.0,0.00039781,2]
[322262547,1712916700514,-152.0,0.00039811,4]
[322262548,1712916700524,-154.14042625,0.00039829,7]
[322262549,1712916700533,-155.0771423,0.00039861,7]
[322262550,1712916700542,-600.0,0.00039876,10]
[322262551,1712916700552,-500.0,0.00039876,10]
[322262552,1712916700561,-500.0,0.00039876,10]
[322262553,1712916700573,-154.68281065,0.00039885,7]
[322262554,1712916700582,-156.33363119,0.00039895,7]
[322262555,1712916700591,-181.74865269,0.000399,48]
[322262556,1712916700601,-152.35,0.00039922,2]
[322262557,1712916700610,-1739.7349598,0.00039972,2]
[322262558,1712916700620,-943.6595152,0.00039972,2]
[322262559,1712916700631,-8578.2537096,0.00039972,2]
[322262560,1712916700640,-32798.13905469,0.00039972,2]
[322262561,1712916700657,-707.01,0.00039972,2]
[322262562,1712916700671,-338.29916822,0.00039972,2]
[322262563,1712916700685,-2022.81688463,0.00039972,2]
[322262564,1712916700698,-10071.68156666,0.00039972,2]
[322262565,1712916700707,-9318.9942806,0.00039973,2]
[322262566,1712916700730,-100000.0,0.0004,40]
[322262567,1712916700742,-193.01379895,0.0004,2]
[322262568,1712916700751,-2851.03754963,0.0004,5]
[322262569,1712916700762,-5154.59491431,0.0004,4]
[322262570,1712916700771,-10833.31783187,0.0004,4]
[322262571,1712916700851,-157.782804,0.00027397,2]
[322262572,1712916700863,-914.69,0.00028219,2]
[322262573,1712916700874,-914.69,0.00028493,2]
[322262574,1712916700885,-914.69,0.00028767,2]
[322262575,1712916700896,-151.55,0.00029,2]
[322262576,1712916700908,-151.55,0.00029,2]
[322262577,1712916700918,-151.55,0.00029,2]
[322262578,1712916700929,-151.55,0.00029,2]
[322262579,1712916700940,-1331.36,0.00029041,2]
[322262580,1712916700952,-914.69,0.00029041,2]
[322262581,1712916700963,-1331.36,0.00029315,2]
[322262582,1712916700974,-11288.47149331,0.0004,4]
[322262583,1712916700985,-210.37183016,0.0004,120]
[322262584,1712916700996,-1398.84261351,0.0004,30]
[322262585,1712916701005,-1385.66,0.0004,6]
[322262586,1712916701016,-5300.0,0.0004,30]
[322262587,1712916701026,-208.82472284,0.0004,30]
[322262588,1712916701035,-650.2571648,0.0004,41]
[322262589,1712916701046,-402.2,0.0004,120]
[322262590,1712916701057,-3613.30020337,0.0004,10]
[322262591,1712916701067,-606.0,0.0004,7]
[322262592,1712916701078,-150.0,0.0004,120]
[322262593,1712916701087,-156.11572054,0.0004,2]
[322262594,1712916701099,-156.12850796,0.000401,7]
[322262595,1712916701108,-252.72329,0.0004017,3]
[322262596,1712916701117,-200.0,0.00040179,2]
[322262597,1712916701127,-500.0,0.00040424,10]
[322262598,1712916701141,-2300.0,0.00040424,10]
[322262599,1712916701150,-836.07,0.00040552,2]
[322262600,1712916701160,-906.64,0.00040552,2]
[322262601,1712916701170,-200.0,0.0004058,2]
[322262602,1712916701179,-767.25,0.00040596,2]
[322262603,1712916701189,-154.82,0.00040621,2]
[322262604,1712916701199,-150.0,0.00040621,2]
[322262605,1712916701208,-150.0,0.00040621,2]
[322262606,1712916701219,-150.0,0.00040621,2]
[322262607,1712916701230,-150.0,0.00040621,2]
[322262608,1712916701239,-910.06,0.00040767,15]
[322262609,1712916701250,-252.72329,0.0004079,6]
[322262610,1712916701259,-1911.9483444,0.00040944,2]
[322262611,1712916701269,-1041.3205336,0.00040944,2]
[322262612,1712916701280,-150.0,0.00040956,2]
[322262613,1712916701290,-2084.161729,0.00040969,2]
[322262614,1712916701301,-1138.981552,0.00040969,2]
[322262615,1712916701310,-600.0,0.00040972,10]
[322262616,1712916701321,-2256.3751137,0.00040972,2]
[322262617,1712916701332,-1236.6425704,0.00040972,2]
[322262618,1712916701341,-500.0,0.00040972,10]
[322262619,1712916701350,-613.29858796,0.00040972,10]
[322262620,1712916701360,-219825.3896504,0.00040997,2]
[322262621,1712916701369,-151.0,0.00040997,14]
[322262622,1712916701380,-223.266435,0.00040997,14]
[322262623,1712916701389,-151.0,0.00040997,14]
[322262624,1712916701398,-100000.0,0.00041,41]
[322262625,1712916701411,-1606.66,0.00041,8]
[322262626,1712916701420,-600.0,0.00041,42]
[322262627,1712916701429,-150.0,0.00041,120]
[322262628,1712916701439,-500.0,0.00041095,2]
[322262629,1712916701448,-500.0,0.00041095,2]
[322262630,1712916701457,-500.0,0.00041095,2]
[322262631,1712916701467,-500.0,0.00041095,2]
[322262632,1712916701478,-505.41247985,0.00041095,2]
[322262633,1712916701488,-1000.0,0.00041095,30]
[322262634,1712916701497,-559.42140072,0.00041095,30]
[322262635,1712916701507,-1000.0,0.00041095,2]
[322262636,1712916701518,-1000.0,0.00041095,2]
[322262637,1712916701527,-506.72475551,0.00041095,2]
[322262638,1712916701538,-1002.83987755,0.00041095,2]
[322262639,1712916701547,-1000.0,0.00041095,2]
[322262640,1712916701556,-157.0,0.00041096,2]
[322262641,1712916701566,-960.0,0.00041096,7]
[322262642,1712916701576,-4325.0,0.000411,2]
[322262643,1712916701586,-252.7233,0.0004142,9]
[322262644,1712916701595,-150.0,0.00041443,2]
[322262645,1712916701606,-150.0,0.00041443,2]
[322262646,1712916701616,-150.0,0.00041443,2]
[322262647,1712916701626,-150.0,0.00041443,2]
[322262648,1712916701638,-150.0,0.00041453,2]
[322262649,1712916701648,-150.0,0.00041453,2]
[322262650,1712916701658,-150.0,0.00041453,2]
[322262651,1712916701668,-150.0,0.00041453,2]
[322262652,1712916701681,-150.0,0.00041453,2]
[322262653,1712916701694,-150.0,0.00041453,2]
[322262654,1712916701704,-150.0,0.00041453,2]
[322262655,1712916701714,-150.0,0.00041453,2]
[322262656,1712916701725,-150.0,0.00041453,2]
[322262657,1712916701734,-150.0,0.00041453,2]
[322262658,1712916701743,-150.0,0.00041453,2]
[322262659,1712916701753,-150.0,0.00041453,2]
[322262660,1712916701765,-150.0,0.00041453,2]
[322262661,1712916701775,-152.38,0.00041511,2]
[322262662,1712916701785,-500.0,0.0004152,30]
[322262663,1712916701796,-2300.0,0.0004152,30]
[322262664,1712916701807,-170.64,0.00041584,2]
[322262665,1712916701816,-100000.0,0.00042,42]
[322262666,1712916701826,-2374.15502948,0.00042,30]
[322262667,1712916701835,-497.70056021,0.00042,120]
[322262668,1712916701845,-713.0,0.00042,30]
[322262669,1712916701855,-150.41474736,0.00042,30]
[322262670,1712916701864,-600.0,0.00042,43]
[322262671,1712916701873,-150.0,0.00042,120]
[322262672,1712916701883,-983.26,0.00042,7]
[322262673,1712916701892,-150.0,0.00042,2]
[322262674,1712916701901,-151.300786,0.00042,14]
[322262675,1712916701911,-151.0,0.00042,14]
[322262676,1712916701920,-156.415468,0.00042,14]
[322262677,1712916701929,-151.0,0.00042,14]
[322262678,1712916701939,-156.415468,0.00042,14]
[322262679,1712916701948,-151.0,0.00042,14]
[322262680,1712916701958,-151.0,0.00042,14]
[322262681,1712916701967,-773.073157,0.00042,14]
[322262682,1712916701977,-773.073157,0.00042,14]
[322262683,1712916701986,-152.128334,0.00042,7]
[322262684,1712916701995,-151.258323,0.00042,7]
[322262685,1712916702005,-600.0,0.00042068,30]
[322262686,1712916702014,-500.0,0.00042068,30]
[322262687,1712916702023,-2300.0,0.00042068,30]
[322262688,1712916702033,-155.555514,0.00042068,14]
[322262689,1712916702042,-151.0,0.00042068,14]
[322262690,1712916702051,-151.0,0.00042068,14]
[322262691,1712916702060,-151.0,0.00042068,14]
[322262692,1712916702070,-151.357773,0.00042068,14]
[322262693,1712916702079,-151.0,0.00042068,14]
[322262694,1712916702087,-151.0,0.00042068,14]
[322262695,1712916702097,-151.0,0.00042068,14]
[322262696,1712916702106,-178.002196,0.00042068,14]
[322262697,1712916702115,-151.0,0.00042068,14]
[322262698,1712916702125,-178.002196,0.00042068,14]
[322262699,1712916702133,-151.0,0.00042068,14]
[322262700,1712916702142,-177.620649,0.00042068,14]
[322262701,1712916702151,-246.653703,0.00042068,14]
[322262702,1712916702161,-246.653703,0.00042068,14]
[322262703,1712916702170,-169.982612,0.00042068,14]
[322262704,1712916702179,-169.982612,0.00042068,14]
[322262705,1712916702188,-500.0,0.00042068,30]
[322262706,1712916702197,-181200.88215573,0.000422,30]
[322262707,1712916702206,-151.0,0.000422,14]
[322262708,1712916702215,-151.0,0.000422,14]
[322262709,1712916702225,-154.863127,0.000422,14]
[322262710,1712916702234,-151.907291,0.000422,14]
[322262711,1712916702243,-151.0,0.000422,14]
[322262712,1712916702252,-151.0,0.000422,14]
[322262713,1712916702262,-152.583272,0.000422,14]
[322262714,1712916702271,-151.0,0.000422,14]
[322262715,1712916702281,-154.313091,0.000422,14]
[322262716,1712916702290,-151.0,0.000422,14]
[322262717,1712916702300,-151.0,0.000422,14]
[322262718,1712916702309,-159.126282,0.000422,14]
[322262719,1712916702319,-151.0,0.000422,14]
[322262720,1712916702328,-155.796017,0.000422,14]
[322262721,1712916702337,-152.35,0.0004227,2]
[322262722,1712916702347,-209.6064337,0.00042298,7]
[322262723,1712916702357,-209.6064337,0.00042298,7]
[322262724,1712916702366,-209.6064337,0.00042298,7]
[322262725,1712916702375,-209.6064337,0.00042298,7]
[322262726,1712916702385,-209.6064337,0.00042298,7]
[322262727,1712916702394,-209.6064337,0.00042298,7]
[322262728,1712916702403,-209.6064337,0.00042298,7]
[322262729,1712916702413,-209.6064337,0.00042298,7]
[322262730,1712916702423,-209.6064337,0.00042298,7]
[322262731,1712916702433,-209.6064337,0.00042298,7]
[322262732,1712916702443,-209.6064337,0.00042298,7]
[322262733,1712916702453,-209.6064337,0.00042298,7]
[322262734,1712916702462,-209.6064337,0.00042298,7]
[322262735,1712916702471,-209.6064337,0.00042298,7]
[322262736,1712916702481,-209.6064337,0.00042298,7]
[322262737,1712916702490,-209.6064337,0.00042298,7]
[322262738,1712916702509,-209.6064337,0.00042298,7]
[322262739,1712916702519,-209.6064337,0.00042298,7]
[322262740,1712916702529,-209.6064337,0.00042298,7]
[322262741,1712916702538,-209.6064337,0.00042298,7]
[322262742,1712916702547,-209.6064337,0.00042298,7]
[322262743,1712916702557,-209.6064337,0.00042298,7]
[322262744,1712916702566,-209.6064337,0.00042298,7]
[322262745,1712916702577,-150.0,0.000423,30]
[322262746,1712916702587,-150.0,0.000423,30]
[322262747,1712916702597,-151.28073731,0.000423,30]
[322262748,1712916702607,-150.0,0.000423,30]
[322262749,1712916702617,-150.29778489,0.000423,30]
[322262750,1712916702627,-150.0,0.000423,30]
[322262751,1712916702637,-150.26362265,0.000423,30]
[322262752,1712916702647,-150.0,0.000423,30]
[322262753,1712916702656,-150.0,0.000423,30]
[322262754,1712916702666,-150.0,0.00042351,30]
[322262755,1712916702677,-150.0,0.00042401,30]
[322262756,1712916702689,-150.0,0.00042421,30]
[322262757,1712916702699,-150.0,0.00042452,30]
[322262758,1712916702709,-150.0,0.00042462,30]
[322262759,1712916702719,-1033.57025315,0.00042465,2]
[322262760,1712916702729,-960.0,0.00042466,7]
[322262761,1712916702738,-150.0,0.000425,120]
[322262762,1712916702748,-156.12850796,0.000425,16]
[322262763,1712916702758,-150.0,0.00042502,30]
[322262764,1712916702770,-150.0,0.00042541,30]
[322262765,1712916702780,-150.0,0.00042553,30]
[322262766,1712916702790,-150.0,0.00042603,30]
[322262767,1712916702799,-600.0,0.00042616,30]
[322262768,1712916702809,-500.0,0.00042616,30]
[322262769,1712916702819,-2300.0,0.00042616,30]
[322262770,1712916702828,-500.0,0.00042616,30]
[322262771,1712916702838,-150.0,0.00042624,30]
[322262772,1712916702848,-150.0,0.00042654,30]
[322262773,1712916702857,-150.0,0.00042662,30]
[322262774,1712916702867,-150.0,0.00042704,30]
[322262775,1712916702876,-150.0,0.00042755,30]
[322262776,1712916702886,-150.0,0.00042782,30]
[322262777,1712916702895,-150.0,0.00042786,30]
[322262778,1712916702905,-150.0,0.00042805,30]
[322262779,1712916702914,-150.0,0.00042856,30]
[322262780,1712916702923,-767.25,0.0004286,2]
[322262781,1712916702933,-150.0,0.00042888,30]
[322262782,1712916702943,-962.49323711,0.0004289,10]
[322262783,1712916703198,-150.0,0.00042903,30]
[322262784,1712916703225,-150.0,0.00042906,30]
[322262785,1712916703237,-150.0,0.00042948,30]
[322262786,1712916703248,-150.0,0.00042957,30]
[322262787,1712916703259,-151.0,0.00042971,14]
[322262788,1712916703270,-151.0,0.00042971,14]
[322262789,1712916703282,-151.0,0.00042971,14]
[322262790,1712916703293,-156.953207,0.00042971,14]
[322262791,1712916703304,-156.953207,0.00042971,14]
[322262792,1712916703316,-158.473448,0.00042971,14]
[322262793,1712916703326,-162.275228,0.00042971,14]
[322262794,1712916703336,-100000.0,0.00043,43]
[322262795,1712916703346,-36874.01126667,0.00043,10]
[322262796,1712916703368,-1331.36,0.00029589,2]
[322262797,1712916703377,-174.63251322,0.00043,10]
[322262798,1712916703389,-455.11369923,0.00043,10]
[322262799,1712916703817,-1.373e-05,0.00043,10]
[322262800,1712916703843,-151.55,0.00029,2]
[322262801,1712916703853,-45496.24250715,0.00043,10]
[322262802,1712916703863,-600.0,0.00043,44]
[322262803,1712916703873,-150.0,0.00043,120]
[322262804,1712916703882,-151.0,0.00043,7]
[322262805,1712916703891,-151.0,0.00043,14]
[322262806,1712916703901,-151.0,0.00043,14]
[322262807,1712916703910,-151.0,0.00043,14]
[322262808,1712916703920,-151.0,0.00043,14]
[322262809,1712916703930,-151.0,0.00043,14]
[322262810,1712916703940,-151.0,0.00043,14]
[322262811,1712916703949,-156.497179,0.00043,14]
[322262812,1712916703959,-150.0,0.00043008,30]
[322262813,1712916703968,-150.0,0.00043023,30]
[322262814,1712916703978,-150.0,0.00043058,30]
[322262815,1712916703988,-150.0,0.00043109,30]
[322262816,1712916703997,-150.0,0.0004311,30]
[322262817,1712916704007,-150.0,0.00043144,30]
[322262818,1712916704016,-150.0,0.00043159,30]
[322262819,1712916704026,-600.0,0.00043164,30]
[322262820,1712916704035,-500.0,0.00043164,30]
[322262821,1712916704045,-53.78902127,0.00043164,30]
[322262822,1712916704058,-2246.21097873,0.00043164,30]
[322262823,1712916704068,-500.0,0.00043164,30]
[322262824,1712916704078,-150.0,0.0004321,30]
[322262825,1712916704087,-150.0,0.0004326,30]
[322262826,1712916704097,-150.0,0.00043264,30]
[322262827,1712916704110,-150.0,0.00043272,30]
[322262828,1712916704119,-150.0,0.00043311,30]
[322262829,1712916704129,-150.0,0.00043361,30]
[322262830,1712916704138,-150.0,0.00043385,30]
[322262831,1712916704148,-150.0,0.00043412,30]
[322262832,1712916704158,-150.0,0.00043434,30]
[322262833,1712916704168,-150.0,0.00043462,30]
[322262834,1712916704177,-150.0,0.00043475,30]
[322262835,1712916704187,-150.0,0.00043505,30]
[322262836,1712916704196,-910.06,0.00043507,15]
[322262837,1712916704206,-150.0,0.00043513,30]
[322262838,1712916704216,-150.0,0.00043563,30]
[322262839,1712916704226,-150.0,0.00043597,30]
[322262840,1712916704235,-150.0,0.00043614,30]
[322262841,1712916704245,-150.0,0.00043626,30]
[322262842,1712916704254,-150.0,0.00043665,30]
[322262843,1712916704264,-600.0,0.00043712,30]
[322262844,1712916704274,-500.0,0.00043712,30]
[322262845,1712916704283,-2300.0,0.00043712,30]
[322262846,1712916704292,-500.0,0.00043712,30]
[322262847,1712916704303,-150.0,0.00043715,30]
[322262848,1712916704312,-150.0,0.00043746,30]
[322262849,1712916704322,-150.0,0.00043759,30]
[322262850,1712916704332,-150.0,0.00043766,30]
[322262851,1712916704341,-4325.95365953,0.000438,2]
[322262852,1712916704351,-150.0,0.00043816,30]
[322262853,1712916704360,-960.0,0.00043835,7]
[322262854,1712916704370,-4558.36,0.00043836,2]
[322262855,1712916704380,-6006.88,0.00043836,2]
[322262856,1712916704390,-150.0,0.00043867,30]
[322262857,1712916704399,-150.0,0.00043867,30]
[322262858,1712916704408,-150.0,0.00043867,30]
[322262859,1712916704419,-150.0,0.00043917,30]
[322262860,1712916704429,-150.0,0.00043921,30]
[322262861,1712916704439,-150.0,0.00043956,2]
[322262862,1712916704448,-150.0,0.00043968,30]
[322262863,1712916704458,-150.0,0.00043987,30]
[322262864,1712916704468,-24736.91066819,0.0004399,15]
[322262865,1712916704481,-141495.64097348,0.0004399,15]
[322262866,1712916704493,-10800.9,0.0004399,15]
[322262867,1712916704653,-151.55,0.00029,2]
[322262868,1712916704663,-914.69,0.00029315,2]
[322262869,1712916704673,-914.69,0.00029589,2]
[322262870,1712916704685,-1331.36,0.00029863,2]
[322262871,1712916704695,-914.69,0.00029863,2]
[322262872,1712916704704,-1331.36,0.00030136,2]
[322262873,1712916704714,-897.74939696,0.00030136,2]
[322262874,1712916704727,-16.94060304,0.00030136,2]
[322262875,1712916704736,-1331.36,0.0003041,2]
[322262876,1712916704746,-914.69,0.0003041,2]
[322262877,1712916704757,-230.34712904,0.00030684,2]
[322262878,1712916704769,-1101.01287096,0.00030684,2]
[322262879,1712916704779,-914.69,0.00030684,2]
[322262880,1712916704789,-1331.36,0.00030958,2]
[322262881,1712916704799,-914.69,0.00030958,2]
[322262882,1712916704809,-1331.36,0.00031232,2]
[322262883,1712916704818,-62.59723715,0.00031232,2]
[322262884,1712916704833,-852.09276285,0.00031232,2]
[322262885,1712916704842,-581.63675715,0.00031506,2]
[322262886,1712916704855,-749.72324285,0.00031506,2]
[322262887,1712916704864,-914.69,0.00031506,2]
[322262888,1712916704873,-1331.36,0.0003178,2]
[322262889,1712916704882,-1331.36,0.00032054,2]
[322262890,1712916704891,-1331.36,0.00032328,2]
[322262891,1712916704900,-15934.95840271,0.0004399,15]
[322262892,1712916704912,-601.015996,0.0004399,15]
[322262893,1712916704923,-346.11167018,0.0004399,15]